[Event "87th Tata Steel Masters 2025"]
[White "Wei,Yi"]
[Black "Van Foreest,Jorden"]
[Site "Wijk aan Zee"]
[Round "10.6"]
[Annotator "TA"]
[Result "1/2-1/2"]
[Date "2025.01.29"]
[WhiteElo "2751"]
[BlackElo "2680"]
[PlyCount "45"]
[TimeControl "60"]

{[%evp 10,45,15,14,13,0,8,4,21,6,15,16,6,6,16,15,10,26,16,20,17,0,0,0,0,0,0,0,0,0,0,0,0,0,0,0,0,0]} 1. e4 {[%emt 0:0:8]} e5 {[%emt 0:0:8]} 2. Nf3 {[%emt 0:0:8]} Nc6 {[%emt 0:0:7]} 3. Bc4 {[%emt 0:0:13]} Nf6 {[%emt 0:0:13]} 4. d3 {[%emt 0:0:9]} Be7 {[%emt 0:0:20]} 5. Nc3 {[%emt 0:0:40]} d6 {[%emt 0:0:34]} 6. a3 {[%emt 0:0:6]} Bg4 {[%emt 0:0:33] C55: Two Knights: 4 d3, 4 d4 exd4 5 e5 and Max Lange Attack.} 7. h3 {[%emt 0:0:17]} Bxf3 {[%emt 0:0:15]} 8. Qxf3 {[%emt 0:0:5]} Nd4 {[%emt 0:0:12][%csl Yc2,Yf3]} 9. Qd1 {[%emt 0:0:4]} c6 {[%emt 0:1:11]} 10. O-O {[%emt 0:0:24]} O-O {[%emt 0:1:58]} 11. Ne2 {[%emt 0:0:37]} Ne6 {[%emt 0:0:7]} 12. Ng3 {[%emt 0:0:13]} d5 {[%emt 0:0:7]} 13. Ba2 {[%emt 0:0:10]} Bc5 {[%emt 0:0:6]} 14. Bd2 {[%emt 0:4:55] The position is equal.} a5 $146 {[%emt 0:4:48]} (14... Qc7 15. Bc3 Rad8 16. Re1 Rfe8 17. exd5 Nf4 18. d4 exd4 19. Rxe8+ Rxe8 20. Bxd4 Bxd4 21. Qxd4 cxd5 22. Qxa7 {0-1 Garcia Palermo,C (2475)-Valsecchi,A (2336) ITA-ch 69th Sarre 2009 (3)} )15. Bc3 {[%emt 0:26:16]} Nd4 {[%emt 0:6:35]} 16. Bd2 {[%emt 0:7:46]} Ne6 {[%emt 0:0:51]} 17. Bc3 {[%emt 0:4:36]} Nd4 {[%emt 0:0:25]} 18. Re1 {[%emt 0:0:16]} Re8 {[%emt 0:1:52]} 19. Bd2 {[%emt 0:1:40]} Ne6 $1 {[%emt 0:2:0]} 20. Qf3 {[%emt 0:27:11]} Nd4 {[%emt 0:0:27][%csl Yc2,Yf3]} 21. Qd1 {[%emt 0:0:5]} Ne6 {[%emt 0:0:6]} 22. Qf3 {[%emt 0:3:52]} Nd4 {[%emt 0:0:7][%csl Yc2,Yf3]} 23. Qd1 {[%emt 0:0:3] Not much happened in this game.   Weighted Error Value: White=0.01 (flawless) /Black=0.00 (flawless)   OK:         	White=9     	Black=11     Best:        	White=1     	Black=2      Strong:       	---       	Black=1} 1/2-1/2

[Event "87th Tata Steel Masters 2025"]
[White "Mendonca,Leon Luke"]
[Black "Giri,Anish"]
[Site "Wijk aan Zee"]
[Round "10.7"]
[Annotator "TA"]
[Result "1/2-1/2"]
[Date "2025.01.29"]
[WhiteElo "2639"]
[BlackElo "2731"]
[PlyCount "60"]
[TimeControl "60"]

{[%evp 12,60,27,23,34,23,34,26,25,8,23,16,41,21,31,29,35,30,33,23,22,26,26,33,17,31,33,47,30,10,17,0,8,6,0,1,0,0,6,0,0,0,0,3,11,0,10,10,11,10,13]} 1. d4 {[%emt 0:0:4]} Nf6 {[%emt 0:0:3]} 2. Nf3 {[%emt 0:0:31]} d5 {[%emt 0:0:9]} 3. c4 {[%emt 0:0:15]} c6 {[%emt 0:1:37]} 4. e3 {[%emt 0:5:27]} Bf5 {[%emt 0:0:29]} 5. Nc3 {[%emt 0:0:9]} e6 {[%emt 0:0:5]} 6. Nh4 {[%emt 0:0:9]} Be4 {[%emt 0:0:12]} 7. f3 {[%emt 0:0:22]} Bg6 {[%emt 0:0:5] D12: Slav Defence: 3 Nf3 Nf6 4 e3 Bf5.} 8. Bd2 {[%emt 0:2:6]} Be7 {[%emt 0:1:37]} 9. Nxg6 {[%emt 0:0:26]} hxg6 {[%emt 0:0:4] White has an edge.} 10. Qc2 {[%emt 0:0:5]} dxc4 {[%emt 0:0:10]} 11. Bxc4 {[%emt 0:0:20]} Nd5 {[%emt 0:0:3]} 12. Kf2 $146 {[%emt 0:14:22]} (12. O-O-O Nd7 13. Kb1 Rc8 14. Ne2 b5 15. Bd3 c5 16. dxc5 O-O 17. Bxb5 Nxc5 18. e4 {1-0 Nakamura,H (2794)-Firouzja,A (2737) Norway Chess Armageddon 12th rapid 2024 (3)} )a6 {[%emt 0:12:29]} 13. Rad1 {[%emt 0:3:24]} Nd7 {[%emt 0:3:11]} 14. g3 {[%emt 0:21:43]} Rc8 {[%emt 0:0:33]} 15. Kg2 {[%emt 0:2:10]} O-O {[%emt 0:8:16]} 16. Be2 {[%emt 0:17:45]} c5 {[%emt 0:9:27]} 17. Nxd5 {[%emt 0:3:43]} exd5 {[%emt 0:0:4]} 18. Qb3 {[%emt 0:2:37]} Qb6 {[%emt 0:13:59]} 19. Qxb6 {[%emt 0:11:19]} Nxb6 {[%emt 0:0:5]} 20. dxc5 {[%emt 0:4:29]} Rxc5 {[%emt 0:2:9] The position is equal.} 21. Rc1 {[%emt 0:2:2] Wards off Rc2} Nc4 {[%emt 0:1:38]} 22. Bxc4 {[%emt 0:0:10]} dxc4 {[%emt 0:0:17]} 23. Bb4 {[%emt 0:4:34]} Rc7 {[%emt 0:0:4][%cal Yc5c7,Yc7e7,Ye7e3,Ye3d3,Yd3d4][%mdl 32]} 24. Bxe7 {[%emt 0:0:6]} Rxe7 {[%emt 0:0:3]} 25. Rxc4 {[%emt 0:2:24]} Rxe3 $11 {[%emt 0:0:4] KRR-KRR} 26. Rf1 {[%emt 0:0:15]} Rd8 {[%emt 0:0:30]} 27. Rf2 {[%emt 0:0:5] Prevents Rd2} Red3 {[%emt 0:1:32]} 28. Re2 {[%emt 0:0:26]} f6 {[%emt 0:0:45]} 29. h4 {[%emt 0:0:59]} Kf7 {[%emt 0:0:6]} 30. Kf2 {[%emt 0:0:9]} R3d4 {[%emt 0:0:16] Weighted Error Value: White=0.05 (flawless) /Black=0.05 (flawless)   OK:         	White=9     	Black=8      Best:        	---       	Black=1} 1/2-1/2

[Event "87th Tata Steel Masters 2025"]
[White "Giri,Anish"]
[Black "Warmerdam,Max"]
[Site "Wijk aan Zee"]
[Round "11.1"]
[Annotator "TA"]
[Result "1-0"]
[Date "2025.01.31"]
[WhiteElo "2731"]
[BlackElo "2646"]
[PlyCount "75"]
[TimeControl "60"]

{[%evp 12,75,11,0,1,4,18,6,35,18,24,22,16,33,21,22,54,52,56,68,52,58,51,62,55,46,63,65,47,44,40,37,37,31,27,16,11,18,15,21,79,75,94,94,282,279,238,177,222,172,157,162,251,252,231,138,427,427,405,397,668,663,1874,4786,29983,29984]} 1. e4 {[%emt 0:0:27]} e5 {[%emt 0:0:7]} 2. Nf3 {[%emt 0:0:5]} Nc6 {[%emt 0:0:4]} 3. Bc4 {[%emt 0:0:12]} Nf6 {[%emt 0:0:6]} 4. d3 {[%emt 0:0:4]} Bc5 {[%emt 0:0:5]} 5. Nc3 {[%emt 0:0:32]} h6 {[%emt 0:0:45]} 6. O-O {[%emt 0:1:19]} d6 {[%emt 0:0:17]} 7. Na4 {[%emt 0:0:11]} Bb6 {[%emt 0:0:15]} 8. a3 {[%emt 0:3:20]} Bg4 {[%emt 0:1:51]} 9. c3 {[%emt 0:0:20] Against Nd4} Bh5 {[%emt 0:15:24] The position is equal.} 10. Nxb6 {[%emt 0:4:54]} axb6 {[%emt 0:1:5]} 11. Qe2 {[%emt 0:2:43]} Qd7 {[%emt 0:18:58]} 12. Qe3 {[%emt 0:6:13]} O-O {[%emt 0:3:57]} 13. h3 {[%emt 0:14:20]} d5 {[%emt 0:10:14]} 14. exd5 {[%emt 0:3:36]} Nxd5 {[%emt 0:1:17]} 15. Nxe5 {[%emt 0:0:35]} Qd6 {[%emt 0:5:59]} 16. Bxd5 {[%emt 0:0:49]} Qxd5 {[%emt 0:5:51]} 17. Nxc6 {[%emt 0:4:25]} Qxc6 {[%emt 0:2:18]} 18. Qe4 {[%emt 0:1:12]} Rfe8 {[%emt 0:25:8][%cal Yf8e8,Ye8e2,Ye2c2][%mdl 32]} 19. Qxc6 {[%emt 0:0:16]} bxc6 {[%emt 0:0:3]} 20. Bf4 {[%emt 0:3:10]} Re2 {[%emt 0:3:59]} 21. b4 {[%emt 0:2:37][%cal Ya3a4]} b5 {[%emt 0:2:19]} 22. Bxc7 {[%emt 0:15:41]} Rc2 {[%emt 0:0:26]} 23. Be5 {[%emt 0:0:13]} Be2 {[%emt 0:2:10][%csl Yd3,Yf1]} 24. Rfe1 {[%emt 0:0:29]} Bxd3 {[%emt 0:1:3]} 25. Re3 {[%emt 0:0:8]} Bg6 {[%emt 0:5:14]} (25... Bc4 $11 )26. Bd4 $16 {[%emt 0:0:41]} Kh7 {[%emt 0:0:29]} 27. Re7 {[%emt 0:2:40]} Ra6 $2 {[%emt 0:1:29]} (27... Kg8 $16 {was called for.} )28. g4 $1 $18 {[%emt 0:8:26][%cal Yg2g4,Yg4f5,Yf5f6,Yf6f7][%mdl 32] Hoping for f4.} Kg8 {[%emt 0:0:4] [#]} 29. Re8+ $1 {[%emt 0:2:57]} Kh7 {[%emt 0:0:1]} 30. Rf8 {[%emt 0:6:20]} Re2 {[%emt 0:2:34] [#] Against Re1} 31. f4 $1 {[%emt 0:0:6] Strongly threatening f5.} f5 {[%emt 0:0:2]} (31... f6 {is a better defense.} 32. f5 Be8 )32. gxf5 {[%emt 0:0:18]} Bh5 {[%emt 0:1:36]} 33. Rc8 {[%emt 0:6:56]} ({White should play} 33. f6 $18 gxf6 34. f5 (34. Bxf6 Kg6 $18 )(34. Rxf6 Ra8 $18 ))Bf3 $2 {[%emt 0:0:6][%mdl 8192] This move loses the game for Black.} (33... Bf7 $16 {keeps fighting.} 34. Rd8 h5 )34. Rc7 {[%emt 0:0:17]} Rg2+ {[%emt 0:0:3]} 35. Kf1 {[%emt 0:0:3]} Kg8 $2 {[%emt 0:0:17]} (35... Bd5 36. f6 Ra8 )36. Re1 {[%emt 0:0:50]} Rxa3 {[%emt 0:2:17]} 37. f6 {[%emt 0:0:8] Intending f7+ and mate.} Bd5 {[%emt 0:0:17]} 38. f7+ {[%emt 0:0:31] Weighted Error Value: White=0.07 (flawless) /Black=0.65.  Loses game:     	---       	Black=2      Mistake:       	White=1     	Black=3      Inaccurate:     	---       	Black=3      OK:         	White=13    	Black=10     Best:        	White=2     	---        Strong:       	White=3     	---} 1-0

[Event "87th Tata Steel Masters 2025"]
[White "Fedoseev,Vladimir"]
[Black "Mendonca,Leon Luke"]
[Site "Wijk aan Zee"]
[Round "11.2"]
[Annotator "ChessBase"]
[Result "0-1"]
[Date "2025.01.31"]
[WhiteElo "2717"]
[BlackElo "2639"]
[PlyCount "80"]
[TimeControl "60"]

1. d4 {[%emt 0:0:27]} Nf6 {[%emt 0:0:13]} 2. c4 {[%emt 0:0:7]} e6 {[%emt 0:0:13]} 3. Nf3 {[%emt 0:0:7]} d5 {[%emt 0:0:45]} 4. g3 {[%emt 0:0:42]} dxc4 {[%emt 0:3:5]} 5. Bg2 {[%emt 0:0:9]} c6 {[%emt 0:0:36]} 6. a4 {[%emt 0:8:48]} Bb4+ {[%emt 0:0:50]} 7. Bd2 {[%emt 0:0:55]} a5 {[%emt 0:0:48]} 8. Bc3 {[%emt 0:4:44]} O-O {[%emt 0:9:7]} 9. Ne5 {[%emt 0:3:26]} c5 {[%emt 0:8:1]} 10. O-O {[%emt 0:1:53]} Nc6 {[%emt 0:5:58]} 11. Na3 {[%emt 0:20:15]} Bxc3 {[%emt 0:25:24]} 12. bxc3 {[%emt 0:8:50]} Nd5 {[%emt 0:16:24]} 13. Nxc6 {[%emt 0:5:23]} bxc6 {[%emt 0:0:4]} 14. dxc5 {[%emt 0:0:36]} Ba6 {[%emt 0:3:2]} 15. Qd4 {[%emt 0:3:22]} Qf6 {[%emt 0:1:50]} 16. Qxf6 {[%emt 0:6:40]} gxf6 {[%emt 0:0:13]} 17. Rfc1 {[%emt 0:0:14]} f5 {[%emt 0:5:41]} 18. Kf1 {[%emt 0:8:14]} Rfd8 {[%emt 0:9:46]} 19. Ke1 {[%emt 0:7:59]} Rab8 {[%emt 0:0:0]} 20. e3 {[%emt 0:2:42]} Rb3 {[%emt 0:0:0]} 21. Bf1 {[%emt 0:3:36]} Nf6 {[%emt 0:2:10]} 22. Bxc4 {[%emt 0:6:20]} Rxa3 {[%emt 0:1:10]} 23. Bxa6 {[%emt 0:0:40]} Rb3 {[%emt 0:3:52]} 24. Bc4 {[%emt 0:4:31]} Rb2 {[%emt 0:3:25]} 25. Rab1 {[%emt 0:3:4]} Rdb8 {[%emt 0:2:20]} 26. Rxb2 {[%emt 0:4:14]} Rxb2 {[%emt 0:0:2]} 27. Be2 {[%emt 0:4:20]} Ne4 {[%emt 0:0:25]} 28. Bf3 {[%emt 0:1:1]} Nxf2 {[%emt 0:0:44]} 29. Bxc6 {[%emt 0:0:10]} Nd3+ {[%emt 0:0:7]} 30. Kd1 {[%emt 0:0:3]} Nf2+ {[%emt 0:6:50]} 31. Ke1 {[%emt 0:0:4]} Nd3+ {[%emt 0:0:3]} 32. Kd1 {[%emt 0:0:3]} Nxc1 {[%emt 0:0:18]} 33. Kxc1 {[%emt 0:0:55]} Re2 {[%emt 0:0:7]} 34. e4 {[%emt 0:2:1]} Kf8 {[%emt 0:0:1]} 35. exf5 {[%emt 0:0:29]} Ke7 {[%emt 0:1:15]} 36. fxe6 {[%emt 0:0:36]} fxe6 {[%emt 0:0:3]} 37. h4 {[%emt 0:0:40]} Re3 {[%emt 0:0:31]} 38. Kc2 {[%emt 0:0:6]} Rxg3 {[%emt 0:0:4]} 39. Kb3 {[%emt 0:0:4]} Rg4 {[%emt 0:0:28]} 40. h5 {[%emt 0:0:4]} h6 {[%emt 0:0:31]} 0-1

[Event "87th Tata Steel Masters 2025"]
[White "Keymer,Vincent"]
[Black "Abdusattorov,Nodirbek"]
[Site "Wijk aan Zee"]
[Round "11.3"]
[Annotator "TA"]
[Result "1/2-1/2"]
[Date "2025.01.31"]
[WhiteElo "2733"]
[BlackElo "2768"]
[PlyCount "154"]
[TimeControl "60"]

{[%evp 9,154,4,6,4,10,0,0,0,8,0,14,19,22,-10,0,0,0,0,0,-19,0,-27,0,-11,0,-20,15,-12,0,-30,-1,-18,0,0,4,5,10,0,31,24,27,-17,-2,-26,0,-31,-20,-50,-50,-237,-230,-222,-232,-216,-105,-105,-106,-133,-132,-135,-137,-113,-111,-149,-133,-173,-176,-195,-80,-80,-80,-80,-80,-80,-68,-80,-80,-80,-80,-80,-80,-80,-80,-80,-80,-80,-80,-80,-80,-80,-80,-80,-80,-80,-80,-88,-85,-85,-85,-90,-89,-107,-100,-99,-99,-97,-93,-92,-90,-104,-104,-103,-84,-69,-59,-66,-66,-66,-54,-62,-52,-52,-52,-52,-52,-65,-52,-52,-52,-52,-52,-52,-27,-25,0,-52,-52,-52,-52,-52,-20,-18,-13,-52,-52,-91,-52]} 1. e4 {[%emt 0:0:4]} c6 {[%emt 0:0:14]} 2. d4 {[%emt 0:0:13]} d5 {[%emt 0:0:10]} 3. exd5 {[%emt 0:0:8]} cxd5 {[%emt 0:0:28]} 4. Bd3 {[%emt 0:0:5]} Nf6 {[%emt 0:2:26]} 5. h3 {[%emt 0:0:5]} Nc6 {[%emt 0:0:9][%cal Yb8c6,Yc6b4,Yb4d3][%mdl 32]} 6. Nf3 {[%emt 0:0:4] B13: Caro-Kann: Exchange Variation and Panov-Botvinnik Attack.} Nb4 {[%emt 0:0:11]} 7. Ne5 {[%emt 0:0:25] 7.Nc3 is the modern continuation.} Nxd3+ {[%emt 0:9:23]} 8. Qxd3 {[%emt 0:0:10] The position is equal.} e6 {[%emt 0:0:7]} 9. Nc3 $146 {[%emt 0:0:32]} (9. Bf4 Be7 10. Nd2 O-O 11. h4 Nd7 12. Ndf3 Nxe5 13. Bxe5 f6 14. Ng5 fxg5 15. hxg5 {1-0 Maerevoet,S (2414)-Csonka,B (2497) Ghent op 44th 2023 (4)} )Bd7 {[%emt 0:2:7]} 10. O-O {[%emt 0:10:36]} Rc8 {[%emt 0:1:23]} 11. Re1 {[%emt 0:5:46]} Be7 {[%emt 0:3:6]} 12. Bg5 {[%emt 0:22:10]} O-O {[%emt 0:2:49]} 13. a4 $1 {[%emt 0:3:18]} Be8 {[%emt 0:3:52]} 14. a5 {[%emt 0:7:45]} a6 {[%emt 0:7:4]} 15. Qd2 {[%emt 0:12:8]} Qc7 {[%emt 0:12:26]} 16. Re3 {[%emt 0:3:23]} Kh8 {[%emt 0:2:19]} 17. Nd3 {[%emt 0:10:54] Inhibits Bb4.} Bb5 {[%emt 0:10:11]} 18. Ne5 {[%emt 0:4:16]} Be8 {[%emt 0:3:4]} 19. Rf3 {[%emt 0:4:41]} Ng8 {[%emt 0:5:25]} 20. Bf4 {[%emt 0:0:5][%cal Ye5f7] Strongly threatening Nxf7+!.} Qd8 {[%emt 0:0:39]} 21. Nd3 {[%emt 0:0:44]} Nf6 {[%emt 0:2:5] [#] Black is weak on the dark squares} 22. Nc5 $1 {[%emt 0:6:13] Repels Ne4} Bc6 {[%emt 0:2:39]} 23. b4 {[%emt 0:0:50]} Ne4 {[%emt 0:1:20]} 24. N3xe4 {[%emt 0:4:35]} dxe4 {[%emt 0:0:28]} 25. Rg3 {[%emt 0:0:3]} Qd5 {[%emt 0:2:2]} 26. Re1 {[%emt 0:3:28]} Qf5 {[%emt 0:3:58]} 27. c3 {[%emt 0:4:7]} f6 {[%emt 0:3:41]} 28. h4 {[%emt 0:0:22]} e5 {[%emt 0:6:53]} 29. dxe5 {[%emt 0:2:55]} (29. Be3 $1 $15 )Rcd8 $1 $19 {[%emt 0:1:9]} 30. Qe3 {[%emt 0:3:39] [#]} (30. exf6 $2 Rxf6 (30... Qxf6 31. Nxe4 Bxe4 32. Qe2 $19 )31. Rg5 Qxf4 $19 )Bxc5 $1 {[%emt 0:4:42]} 31. bxc5 {[%emt 0:0:2] [#]} Rd3 {[%emt 0:2:22]} (31... fxe5 32. Bg5 Rd3 33. Qe2 $17 )(31... g5 $1 $19 {[%cal Rg5f4] is more deadly.} 32. hxg5 fxg5 (32... Rd3 33. Qc1 $16 )33. Bxg5 Rd3 )32. Qc1 $17 {[%emt 0:0:33]} (32. exf6 $2 Rxf6 (32... Rxe3 $2 33. fxg7+ Kg8 34. gxf8=Q+ Kxf8 35. Bxe3 $18 )(32... Qxf6 $2 33. Bh6 $19 )33. Bg5 Rxe3 $19 )fxe5 {[%emt 0:2:4]} 33. Bxe5 {[%emt 0:1:52]} Qxf2+ {[%emt 0:0:11][%csl Ye4] Black has a strong passed pawn} 34. Kh2 {[%emt 0:0:2]} Rxg3 {[%emt 0:5:1]} (34... Qxc5 $2 35. Bxg7+ Kg8 36. Bxf8+ Kxf8 37. Qf4+ Ke8 38. Rxd3 $18 )35. Bxg3 {[%emt 0:0:1]} Qxc5 {[%emt 0:0:11]} 36. Bc7 {[%emt 0:0:39]} Rf7 {[%emt 0:2:4]} 37. Qd2 {[%emt 0:1:30]} h6 {[%emt 0:0:8][%cal Yh8h7]} (37... Rxc7 38. Qd8+ )38. Bb6 {[%emt 0:0:9]} Qe7 {[%emt 0:0:38]} (38... Qh5 $19 39. g3 Rd7 )39. Qd8+ {[%emt 0:0:41]} Qxd8 {[%emt 0:1:13]} 40. Bxd8 {[%emt 0:0:2][%mdl 4096] Endgame KRB-KRB. Black is a pawn up.} Rf2 {[%emt 0:0:16]} 41. Bb6 {[%emt 0:3:27]} Ra2 {[%emt 0:2:5]} 42. h5 {[%emt 0:18:11] [#]} e3 $1 {[%emt 0:30:13]} 43. Rxe3 {[%emt 0:0:12]} Rxg2+ {[%emt 0:0:3]} 44. Kh3 {[%emt 0:0:6]} Kg8 {[%emt 0:0:37]} 45. Bd4 {[%emt 0:7:54]} Rg1 {[%emt 0:7:27]} 46. Re7 {[%emt 0:4:26]} Rg5 {[%emt 0:0:18][%csl Ya5,Yh5]} 47. Kh4 {[%emt 0:0:15]} Kf8 {[%emt 0:1:8]} (47... Rxa5 $6 48. Rxg7+ Kf8 49. Rg6 $11 )48. Rc7 {[%emt 0:1:54]} Be4 {[%emt 0:2:29]} ({Of course not} 48... Rxa5 49. Bxg7+ Kg8 50. Bxh6 $15 )49. Bb6 {[%emt 0:11:11]} Kg8 {[%emt 0:4:10]} 50. Rc8+ {[%emt 0:3:20]} Kh7 {[%emt 0:0:29]} 51. Rc7 {[%emt 0:0:4]} Bf3 {[%emt 0:1:52]} 52. Bd4 {[%emt 0:0:4]} Bxh5 {[%emt 0:2:59]} (52... Rxa5 $2 53. Rxg7+ Kh8 54. Rg5+ (54. Rxb7+ Kg8 $11 )Kh7 55. Rxa5 $18 )(52... Rxh5+ $2 53. Kg3 Rg5+ (53... Bd1 $2 54. Rxg7+ Kh8 55. c4 $18 )54. Kxf3 $18 )53. Rxb7 {[%emt 0:0:2]} Be2 {[%emt 0:0:23]} (53... Rxa5 $2 54. Rxg7+ (54. Bxg7 Bf3 $15 )Kh8 55. Rg5+ Kh7 56. Rxa5 $18 )54. Re7 {[%emt 0:0:36]} Bf1 {[%emt 0:2:0]} 55. Rf7 {[%emt 0:1:42]} Bc4 {[%emt 0:0:20]} 56. Re7 {[%emt 0:2:30]} Bd3 {[%emt 0:1:27][%cal Yd3f5] and ...Bf5! would now be decisive} (56... Rxa5 $2 57. Rxg7+ Kh8 58. Rg5+ Kh7 59. Rxa5 $18 )57. Kh3 {[%emt 0:0:54]} Bf5+ {[%emt 0:0:51]} (57... Rxa5 $2 58. Rxg7+ (58. Bxg7 $2 {too greedy.} Rh5+ 59. Kg3 Rg5+ 60. Kf4 Rxg7 $19 )Kh8 59. Rg5+ Kh7 60. Rxa5 $18 )58. Kh2 {[%emt 0:0:1]} Rg4 {[%emt 0:0:21]} 59. Rc7 {[%emt 0:1:0]} Bd3 {[%emt 0:0:31]} 60. Rc5 {[%emt 0:1:31]} Bb5 {[%emt 0:1:43]} 61. Kh3 {[%emt 0:15:39]} Rg6 {[%emt 0:15:29]} 62. Rc7 {[%emt 0:0:31] Dodges Bd7+} Bf1+ {[%emt 0:0:32]} 63. Kh4 {[%emt 0:1:14]} Bd3 {[%emt 0:0:54]} 64. Kh3 {[%emt 0:0:3]} h5 {[%emt 0:1:16]} 65. Rc5 {[%emt 0:1:13]} Be2 {[%emt 0:0:13]} 66. Re5 {[%emt 0:0:8]} Bf3 {[%emt 0:0:47]} 67. Re3 {[%emt 0:0:32]} Bd1 {[%emt 0:1:25]} 68. Re1 {[%emt 0:0:13]} Bg4+ {[%emt 0:0:12]} 69. Kh4 {[%emt 0:0:51]} Kg8 {[%emt 0:1:37]} 70. Re5 {[%emt 0:0:16]} Rd6 {[%emt 0:0:6]} 71. Re7 {[%emt 0:0:50]} Rg6 {[%emt 0:0:16]} 72. Re5 $1 {[%emt 0:0:5]} Rc6 {[%emt 0:0:5]} 73. Re7 {[%emt 0:0:53]} g6 $1 {[%emt 0:0:8]} 74. Rb7 {[%emt 0:0:35]} Re6 {[%emt 0:0:24]} 75. Kg5 {[%emt 0:0:15]} Bf5 {[%emt 0:0:24]} 76. Rb6 {[%emt 0:0:23]} Kf7 {[%emt 0:0:14]} 77. Rxe6 {[%emt 0:0:10]} Kxe6 {[%emt 0:0:1] And White is the lucky defender.   Weighted Error Value: White=0.17 (very precise) /Black=0.10 (very precise)   Loses game:     	White=1     	---        Mistake:       	---       	Black=2      Inaccurate:     	White=11    	Black=7      OK:         	White=18    	Black=32     Best:        	White=8     	Black=3      Strong:       	White=2     	Black=3      Brilliant:      	White=1     	---} 1/2-1/2

[Event "87th Tata Steel Masters 2025"]
[White "Gukesh,Dommaraju"]
[Black "Wei,Yi"]
[Site "Wijk aan Zee"]
[Round "11.4"]
[Annotator "TA"]
[Result "1/2-1/2"]
[Date "2025.01.31"]
[WhiteElo "2777"]
[BlackElo "2751"]
[PlyCount "60"]
[TimeControl "60"]

{[%evp 10,60,36,21,20,22,37,10,33,22,31,17,35,18,30,16,22,11,20,20,20,25,23,28,20,24,15,16,19,22,26,33,27,22,20,22,31,9,33,23,34,0,3,0,0,0,0,0,0,0,0,4,10]} 1. e4 {[%emt 0:0:44]} e5 {[%emt 0:0:9]} 2. Nf3 {[%emt 0:0:6]} Nc6 {[%emt 0:0:5]} 3. Bc4 {[%emt 0:0:5]} Nf6 {[%emt 0:0:15]} 4. d3 {[%emt 0:1:27][%cal Yd2d3,Yd3d4][%mdl 32]} Be7 {[%emt 0:0:10]} 5. O-O {[%emt 0:0:58]} O-O {[%emt 0:0:9]} 6. Nbd2 {[%emt 0:8:58]} d5 {[%emt 0:15:12] C55: Two Knights: 4 d3, 4 d4 exd4 5 e5 and Max Lange Attack.} 7. exd5 {[%emt 0:0:8]} Nxd5 {[%emt 0:0:6]} 8. Re1 {[%emt 0:5:7]} f6 {[%emt 0:10:11]} 9. d4 {[%emt 0:6:52][%cal Rd4e5]} Bg4 $146 {[%emt 0:12:44]} (9... exd4 10. Nb3 Kh8 11. Nbxd4 Nxd4 12. Qxd4 Nb6 13. Bd3 Qxd4 14. Nxd4 Bc5 15. Nb5 Nd5 {½-½ Zhigalko,S (2572)-Pranav,V (2486) Titled Tuesday intern op 08th Feb Late blitz 2022 (9)} )10. Nb3 {[%emt 0:41:15][%cal Rd4e5]} Kh8 {[%emt 0:37:41]} 11. h3 {[%emt 0:1:56]} Bh5 {[%emt 0:6:0]} 12. c3 {[%emt 0:0:8]} (12. dxe5 {is more complex.} Ndb4 13. c3 Qxd1 14. Rxd1 Bxf3 15. gxf3 Nxe5 16. Be2 )exd4 {[%emt 0:2:7]} 13. Nbxd4 {[%emt 0:1:27]} Nxd4 {[%emt 0:4:54]} 14. Qxd4 {[%emt 0:1:15]} Bxf3 {[%emt 0:6:40]} 15. gxf3 {[%emt 0:0:6]} Nb6 {[%emt 0:0:5][%cal Yd5b6,Yb6c4,Yc4b2,Yb2d1][%mdl 32]} 16. Qxd8 {[%emt 0:1:32]} Rfxd8 {[%emt 0:1:17]} 17. Rxe7 {[%emt 0:2:55]} Nxc4 {[%emt 0:0:4]} 18. Bf4 {[%emt 0:1:47]} ({But not} 18. Rxc7 Rd1+ 19. Kg2 Ne5 20. Rxb7 Nd3 $17 )Nxb2 {[%emt 0:1:57]} 19. Rb1 {[%emt 0:4:48]} Rd1+ {[%emt 0:0:52]} 20. Rxd1 {[%emt 0:0:6]} Nxd1 {[%emt 0:0:2]} 21. Rxc7 $11 {[%emt 0:0:10][%mdl 4096] Endgame KRB-KRN} b6 {[%emt 0:0:24]} 22. Kf1 {[%emt 0:6:25]} Re8 {[%emt 0:3:20]} 23. Bd2 {[%emt 0:6:48]} h5 {[%emt 0:0:6]} 24. Rxa7 {[%emt 0:0:45]} Rd8 {[%emt 0:0:15]} 25. Be1 {[%emt 0:2:37]} (25. Ke2 $5 Nxf2 26. Bh6 gxh6 27. Kxf2 $11 )Nb2 {[%emt 0:0:17] The position is equal.} 26. Rb7 {[%emt 0:3:4]} Nc4 {[%emt 0:0:45]} 27. Rc7 {[%emt 0:0:5]} Ne5 {[%emt 0:0:18]} 28. Ke2 {[%emt 0:3:12]} Re8 {[%emt 0:1:53]} 29. Bd2 {[%emt 0:4:39]} Nc4+ {[%emt 0:0:9]} 30. Be3 {[%emt 0:0:51]} Nxe3 $1 {[%emt 0:0:6] Not much happened in this game.   Weighted Error Value: White=0.08 (flawless) /Black=0.03 (flawless)   Inaccurate:     	White=2     	---        OK:         	White=10    	Black=11     Best:        	White=1     	Black=2      Strong:       	---       	Black=1} 1/2-1/2